bitfinex-derivatives/quotes_SOLF0:USTF0_20251006
["timestamp","ask_amount","ask_price","bid_price","bid_amount"]
[1759717646121,28.02,230.85,230.77,8.04]
[1759717647821,50.9,230.9,230.77,8.04]
[1759717648127,7.4,230.89,230.77,8.04]
[1759717648621,7.4,230.89,230.79,3.8984]
[1759717648821,7.4,230.89,230.8,8.04]
[1759717649720,7.4,230.89,230.76,13.02780421]
[1759717649721,7.4,230.89,230.76,24.96660421]
[1759717649917,7.4,230.89,230.76,11.9388]
[1759717650526,50.9,230.9,230.76,11.9388]
[1759717650728,7.4,230.87,230.76,11.9388]
[1759717651226,74.18,230.86,230.78,3.8986]
[1759717654228,74.18,230.86,230.77,8.04]
[1759717654423,74.18,230.86,230.76,16.65400043]
[1759717654630,7.28,230.85,230.76,16.65400043]
[1759717654829,7.28,230.85,230.76,24.24400043]
[1759717655835,7.28,230.85,230.72,7.22505637]
[1759717656031,1.9523337,230.79,230.72,12.75844074]
[1759717656227,1.9523337,230.79,230.71,7.59]
[1759717656433,7.28,230.78,230.71,7.59]
[1759717656933,7.28,230.78,230.67,14.81505637]
[1759717657338,7.28,230.78,230.67,7.59]
[1759717657638,7.28,230.78,230.67,11.4904]
[1759717658534,7.28,230.78,230.67,24.56748413]
[1759717658838,26.72,230.77,230.67,24.56748413]
[1759717659637,26.72,230.77,230.67,20.66708413]
[1759717659833,7.28,230.74,230.63,7.59]
[1759717661240,7.28,230.74,230.63,20.30531456]
[1759717662434,51.3,230.73,230.63,24.20631456]
[1759717662638,51.3,230.73,230.64,7.59]
[1759717666042,7.28,230.74,230.64,7.59]
[1759717666248,74.64,230.73,230.64,7.59]
[1759717666949,7.28,230.74,230.65,7.59]
[1759717667144,100.8,230.74,230.65,7.59]
[1759717669444,7.28,230.74,230.67,7.96]
[1759717674053,7.42,230.81,230.74,3.8992]
[1759717674258,7.42,230.86,230.75,7.96]
[1759717675158,7.42,230.84,230.75,7.96]
[1759717675352,7.42,230.86,230.67,7.96]
[1759717675552,7.42,230.84,230.67,7.96]
[1759717676057,7.42,230.84,230.71,3.8996]
[1759717676260,7.42,230.84,230.72,7.96]
[1759717677463,7.42,230.84,230.76,7.96]
[1759717677652,7.42,230.84,230.7,7.96]
[1759717678157,7.42,230.84,230.72,3.8995]
[1759717678954,7.42,230.84,230.75,7.96]
[1759717683162,74.22,230.83,230.75,7.96]
[1759717683558,74.22,230.83,230.75,11.8591]
[1759717684159,106.92,230.85,230.78,7.96]
[1759717685166,7.42,230.88,230.78,7.96]
[1759717685361,7.42,230.86,230.78,7.96]
[1759717686060,7.42,230.84,230.74,7.96]
[1759717686267,1.9523337,230.83,230.74,7.96]
[1759717686462,7.42,230.82,230.74,7.96]
[1759717689261,8.66957544,230.82,230.74,7.96]
[1759717689963,115.56957544,230.82,230.74,7.96]
[1759717690962,115.56957544,230.82,230.74,11.8591]
[1759717691158,7.42,230.82,230.74,11.8591]
[1759717694963,1.24957544,230.83,230.75,7.96]
[1759717695166,7.42,230.86,230.77,7.96]
[1759717695167,3.01888277,230.85,230.77,7.96]
[1759717696969,3.01888277,230.85,230.76,1.24957544]
[1759717696970,108.14957544,230.89,230.8,7.96]
[1759717697169,3.02220147,230.88,230.8,7.96]
[1759717697564,4.83437105,231.02,230.86,7.82]
[1759717697766,7.34,231.07,230.98,7.82]
[1759717698168,7.34,231.07,230.99,3.90855194]
[1759717698364,7.34,231.07,231.0,3.90855194]
[1759717698664,7.34,231.07,231.01,3.90855194]
[1759717698864,7.34,231.09,231.02,3.90855194]
[1759717699070,7.34,231.09,231.03,3.90855194]
[1759717699363,1.24957544,231.1,231.04,3.90855194]
[1759717699364,3.18053323,231.1,231.04,3.90855194]
[1759717699571,1.24957544,231.11,231.05,3.90855194]
[1759717699871,1.24957544,231.11,231.06,3.90855194]
[1759717700170,1.24957544,231.11,231.07,3.90855194]
[1759717700471,1.24957544,231.11,230.98,11.7151]
[1759717700472,1.24957544,231.11,231.08,3.90855194]
[1759717700664,1.24957544,231.11,231.09,7.59037558]
[1759717700865,1.24957544,231.11,231.1,3.70182364]
[1759717701370,8.58957544,231.11,231.1,3.70182364]
[1759717701770,7.34,231.11,231.1,3.70182364]
[1759717702964,107.8,231.12,231.1,3.70182364]
[1759717703164,107.8,231.12,231.11,3.70182364]
[1759717704365,107.8,231.12,231.05,7.82]
[1759717704571,107.8,231.12,231.06,3.67971776]
[1759717704768,107.8,231.12,231.08,7.82]
[1759717704972,107.8,231.12,231.09,3.67971776]
[1759717705265,7.34,231.11,231.1,3.67971776]
[1759717711866,7.34,231.11,231.1,3.65219485]
[1759717712664,7.34,231.11,231.1,7.38680292]
[1759717716466,7.34,231.11,231.1,7.38570964]
[1759717717774,7.34,231.11,231.1,3.73460807]
[1759717718570,7.34,231.11,231.05,7.98]
[1759717722477,7.34,231.11,231.01,7.98]
[1759717723273,0.44,231.11,230.84,4.82995971]
[1759717723473,1.24957544,230.95,230.8,3.62246978]
[1759717723781,1.18,230.94,230.74,7.98]
[1759717723979,1.18,230.94,230.7,7.98]
[1759717723980,8.62957544,230.88,230.7,7.98]
[1759717724175,8.62957544,230.88,230.65,64.9179]
[1759717724176,17.44,230.87,230.74,7.98]
[1759717724380,1.24957544,230.85,230.74,7.98]
[1759717724671,17.44,230.87,230.74,7.98]
[1759717725068,1.24957544,230.86,230.74,7.98]
[1759717725270,25.4,230.85,230.76,7.98]
[1759717725474,49.54,230.86,230.76,7.98]
[1759717725677,58.4,230.88,230.79,7.98]
[1759717725872,8.62957544,230.93,230.79,7.98]
[1759717726077,70.42,230.92,230.82,7.98]
[1759717726382,90.54,230.92,230.82,7.98]
[1759717726578,1.24957544,230.95,230.82,7.98]
[1759717726779,21.66,230.94,230.82,7.98]
[1759717726988,7.38,230.97,230.83,60.6321]
[1759717727183,1.24957544,230.97,230.84,9.22957544]
[1759717729079,11.98,230.98,230.84,7.98]
[1759717732580,7.75,230.97,230.84,7.98]
[1759717740092,3.8957,230.96,230.84,7.98]
[1759717740496,7.75,230.97,230.84,7.98]
[1759717742602,3.8958,230.95,230.84,7.98]
[1759717743598,3.8958,230.95,230.77,60.6474]
[1759717743599,2.9997143,230.94,230.77,7.47]
[1759717743896,2.9997143,230.89,230.77,7.47]
[1759717744095,7.75,230.88,230.77,7.47]
[1759717744298,11.6469,230.88,230.77,7.47]
[1759717744497,7.75,230.88,230.77,7.47]
[1759717744700,7.75,230.86,230.77,7.47]
[1759717745602,11.6473,230.86,230.77,7.47]
[1759717745803,3.11470035,230.85,230.69,7.47]
[1759717746606,11.6473,230.86,230.69,7.47]
[1759717746899,3.8976,230.84,230.7,3.8998]
[1759717747105,7.75,230.83,230.71,7.47]
[1759717748201,26.9597143,230.89,230.73,7.47]
[1759717748202,7.75,230.88,230.73,7.47]
[1759717748500,63.28,230.92,230.75,7.47]
[1759717748701,63.28,230.92,230.74,60.6557]
[1759717748702,3.11003178,230.91,230.81,3.8981]
[1759717748895,107.67,230.93,230.82,7.47]
[1759717749402,107.67,230.93,230.77,60.6482]
[1759717749403,7.75,230.93,230.84,7.47]
[1759717749996,3.8964,230.92,230.84,7.47]
[1759717750201,7.75,230.93,230.79,7.47]
[1759717751106,7.75,230.93,230.8,3.8983]
[1759717751604,107.62,230.92,230.81,7.47]
[1759717752204,115.35,230.93,230.82,3.8978]
[1759717752506,115.35,230.93,230.81,7.47]
[1759717753105,7.75,230.91,230.81,7.47]
[1759717758411,107.56,230.9,230.81,7.47]
[1759717760308,7.75,230.91,230.81,7.47]
[1759717760502,107.48,230.9,230.81,7.47]
[1759717761411,7.75,230.91,230.83,7.5]
[1759717761913,7.75,230.91,230.83,11.3976]
[1759717762111,315.18,230.94,230.84,7.5]
[1759717762309,110.57989015,230.93,230.84,7.5]
[1759717762510,107.46,230.93,230.84,7.5]
[1759717764314,3.12438942,230.92,230.84,7.5]
[1759717765709,10.95438942,230.92,230.84,7.5]
[1759717766019,3.12438942,230.91,230.84,7.5]
[1759717767207,3.12438942,230.9,230.84,7.5]
[1759717767412,3.12438942,230.91,230.84,7.5]
[1759717767604,3.12438942,230.9,230.84,7.5]
[1759717767812,3.12438942,230.91,230.84,7.5]
[1759717768019,3.12438942,230.9,230.84,7.5]
[1759717768312,3.12438942,230.89,230.82,7.5]
[1759717768506,3.1380973,230.88,230.82,7.5]
[1759717768713,3.1380543,230.91,230.82,7.5]
[1759717768911,3.1380543,230.9,230.82,7.5]
[1759717769115,3.1380543,230.89,230.82,7.5]
[1759717769312,7.83,230.92,230.82,7.5]
[1759717769516,3.13808518,230.91,230.82,7.5]
[1759717769718,3.13808518,230.9,230.82,7.5]
[1759717770018,3.13808518,230.89,230.82,7.5]
[1759717770310,3.13802077,230.91,230.85,7.5]
[1759717770517,3.13802077,230.93,230.85,7.5]
[1759717771015,3.13802077,230.93,230.88,3.8968]
[1759717771217,107.28,230.94,230.85,7.5]
[1759717771813,7.83,231.01,230.9,7.5]
[1759717772014,3.1370499,231.0,230.9,7.5]
[1759717772308,3.1370499,230.99,230.9,7.5]
[1759717772515,3.1370499,230.98,230.9,7.5]
[1759717772719,115.17,231.01,230.92,3.62782026]
[1759717774218,115.17,231.01,230.93,3.62782026]
[1759717774920,115.11,231.01,230.93,3.62782026]
[1759717777415,115.11,231.01,230.92,3.62782026]
[1759717778022,115.11,231.01,230.93,3.62782026]
[1759717778219,115.11,231.01,230.92,3.62782026]
[1759717781119,115.11,231.01,230.91,3.62782026]
[1759717781630,115.11,231.01,230.88,4.83709368]
[1759717781631,1.94936881,230.95,230.88,3.62782026]
[1759717781925,115.0,230.94,230.85,3.62782026]
[1759717782323,115.0,230.94,230.84,3.62782026]
[1759717782519,7.92,230.9,230.84,3.62782026]
[1759717782723,7.92,230.9,230.83,3.62782026]
[1759717786329,7.92,230.9,230.82,3.62782026]
[1759717786627,1.94936881,230.91,230.78,7.7]
[1759717786628,7.92,230.86,230.78,3.62782026]
[1759717786828,115.0,230.86,230.78,3.62782026]
[1759717790430,115.0,230.86,230.77,11.32782026]
[1759717791432,7.3,230.85,230.77,3.62782026]
[1759717792234,7.3,230.85,230.78,3.62782026]
[1759717792629,7.3,230.85,230.78,11.47782026]
[1759717795238,7.3,230.85,230.78,7.85]
[1759717802040,7.3,230.85,230.75,3.62782026]
[1759717802241,11.1983,230.81,230.74,3.62782026]
[1759717802437,107.04,230.8,230.74,3.62782026]
[1759717802643,114.34,230.8,230.74,3.62782026]
[1759717803739,114.34,230.8,230.73,3.62782026]
[1759717804134,3.8988,230.77,230.73,3.62782026]
[1759717804342,7.3,230.76,230.69,3.62782026]
[1759717804540,7.3,230.74,230.68,3.62782026]
[1759717804844,7.3,230.74,230.67,11.47782026]
[1759717807451,7.3,230.74,230.67,7.85]
[1759717810756,7.3,230.85,230.69,7.85]
[1759717811057,7.3,230.83,230.71,7.85]
[1759717811648,11.1978,230.83,230.71,7.85]
[1759717813055,1.2495851,230.82,230.71,7.85]
[1759717814553,1.2495851,230.82,230.71,11.7496]
[1759717814955,7.3,230.81,230.71,11.7496]
[1759717815554,1.2495851,230.79,230.71,7.85]
[1759717815761,7.3,230.77,230.71,7.85]
[1759717815961,1.2495851,230.76,230.67,7.85]
[1759717818357,7.3,230.77,230.68,3.9002]
[1759717818556,107.06,230.78,230.7,1.2495851]
[1759717818755,107.06,230.78,230.71,7.41]
[1759717820059,7.4,230.79,230.71,7.41]
[1759717822358,7.4,230.79,230.71,11.01606962]
[1759717822661,7.4,230.79,230.72,3.8996]
[1759717822862,12.54,230.84,230.74,7.41]
[1759717823162,12.54,230.84,230.74,11.01606962]
[1759717823562,12.54,230.84,230.75,3.899]
[1759717824259,12.54,230.84,230.75,7.50506962]
[1759717824462,8.6495851,230.85,230.75,7.50506962]
[1759717824463,1.2495851,230.85,230.75,7.50506962]
[1759717824663,7.105e-05,231.14,231.01,3.8947]
[1759717824864,7.4,231.17,231.06,1.2495851]
[1759717825159,7.4,231.17,231.11,1.2495851]
[1759717825562,7.4,231.16,231.12,4.22112958]
[1759717825754,499.9001,231.26,231.13,4.22112958]
[1759717825755,443.2706,231.26,231.13,4.22112958]
[1759717825958,7.4,231.22,231.14,4.22112958]
[1759717826160,7.4,231.22,231.15,4.22112958]
[1759717826357,7.4,231.22,231.16,4.22112958]
[1759717826560,118.14,231.21,231.15,1.2495851]
[1759717827166,118.14,231.21,231.11,12.85627471]
[1759717827467,118.14,231.21,231.09,2.99272864]
[1759717828859,110.66,231.2,231.1,7.41]
[1759717829667,117.98,231.21,231.1,7.41]
[1759717831360,7.4,231.21,231.1,7.41]
[1759717831666,7.4,231.2,231.09,12.90279475]
[1759717831869,60.5421,231.18,231.01,35.40551843]
[1759717832071,7.4,231.14,231.0,7.41]
[1759717832264,7.4,231.12,231.0,7.41]
[1759717833064,6.65,231.12,231.0,7.41]
[1759717835265,3.8931,231.11,231.01,4.02093847]
[1759717835469,3.8931,231.11,231.02,4.02093847]
[1759717835664,3.8931,231.11,231.03,4.02093847]
[1759717835860,3.8936,231.08,231.04,4.02093847]
[1759717836069,7.44,231.08,231.05,4.02093847]
[1759717836266,60.5653,231.09,231.06,4.02093847]
[1759717836467,7.44,231.08,231.07,3.847e-05]
[1759717837568,11.3335,231.08,231.07,3.847e-05]
[1759717839878,121.4535,231.08,231.07,3.847e-05]
[1759717840270,116.02500864,231.08,231.07,3.847e-05]
[1759717845484,5.92500864,231.08,231.07,3.847e-05]
[1759717845880,115.76500864,231.08,231.07,3.847e-05]
[1759717848285,3.8941,231.05,231.01,8.01]
[1759717848587,109.8,231.04,231.03,8.01]
[1759717848782,109.8,231.04,231.03,11.80311816]
[1759717849178,109.68,231.04,231.03,11.80311816]
[1759717849379,109.66,231.06,231.03,3.79311816]
[1759717849580,109.66,231.06,231.05,8.01]
[1759717849780,109.66,231.06,231.05,11.80311816]
[1759717851481,6.82,231.12,231.05,3.79311816]
[1759717851680,3.8928,231.13,231.06,11.80311816]
[1759717851888,109.58,231.12,231.08,8.01]
[1759717852085,109.58,231.12,231.09,3.79311816]
[1759717852383,109.58,231.12,231.1,3.79311816]
[1759717852688,109.56,231.12,231.11,3.79311816]
[1759717852890,4.18614933,231.19,231.12,8.01]
[1759717853084,109.56,231.18,231.13,3.79311816]
[1759717853287,116.38,231.18,231.14,3.79311816]
[1759717853482,116.38,231.18,231.15,3.79311816]
[1759717853789,120.272,231.18,231.16,3.79311816]
[1759717853987,120.272,231.18,231.17,3.79311816]
[1759717858685,6.82,231.25,231.17,11.80311816]
[1759717858889,109.32,231.24,231.18,3.79311816]
[1759717859084,109.32,231.24,231.15,1.24643854]
[1759717859085,6.82,231.24,231.19,3.79311816]
[1759717859291,109.28,231.23,231.2,3.79311816]
[1759717859483,109.28,231.23,231.16,8.01]
[1759717859690,3.8912,231.22,231.16,8.01]
[1759717860390,109.28,231.21,231.16,8.01]
[1759717860585,109.28,231.21,231.15,9.25643854]
[1759717860794,6.82,231.2,231.11,1.24643854]
[1759717862389,3.8919,231.18,231.11,1.24643854]
[1759717862589,109.24,231.17,231.11,1.24643854]
[1759717863190,3.8922,231.16,231.1,9.25643854]
[1759717863593,8.06643854,231.16,231.07,3.60606962]
[1759717863794,6.82,231.16,231.07,9.25643854]
[1759717864486,109.2,231.15,231.07,12.86250816]
[1759717864690,109.2,231.15,231.07,8.01]
[1759717866291,1.24643854,231.13,231.05,3.60606962]
[1759717866492,6.82,231.12,231.03,11.61606962]
[1759717866691,1.24643854,231.07,231.01,3.60606962]
[1759717866891,10.7144,231.03,231.0,16.8090439]
[1759717867097,109.12,231.06,231.0,16.8090439]
[1759717867598,113.0139,231.06,231.0,13.20297428]
[1759717867798,113.0139,231.06,231.0,3.60606962]
[1759717868495,1.24643854,231.04,230.99,3.60606962]
[1759717868695,6.82,231.03,230.99,3.60606962]
[1759717868993,6.82,231.01,230.99,3.60606962]
[1759717869198,6.82,231.01,231.0,3.60606962]
[1759717869495,109.12,231.01,231.0,16.35034364]
[1759717872393,3.8936,231.08,231.0,24.36034364]
[1759717872597,3.8936,231.08,231.03,3.60606962]
[1759717872598,96.22,231.07,231.03,3.60606962]
[1759717872796,6.82,231.06,231.03,3.60606962]
[1759717873096,6.82,231.06,231.0,25.5913677]
[1759717873097,96.22,231.07,231.0,16.35034364]
[1759717873402,6.82,231.06,231.0,12.74427402]
[1759717873596,6.82,231.06,231.0,3.60606962]
[1759717873800,3.8942,231.04,231.0,3.60606962]
[1759717874000,6.82,231.06,231.0,3.60606962]
[1759717874204,99.66,231.05,231.02,11.61606962]
[1759717874398,106.48,231.05,231.03,3.60606962]
[1759717874597,106.48,231.05,231.01,3.60606962]
[1759717875101,106.48,231.05,231.02,3.60606962]
[1759717875499,6.82,231.04,231.0,16.6729929]
[1759717875702,99.66,231.05,231.0,13.06692328]
[1759717875898,106.48,231.05,230.99,3.60606962]
[1759717876495,99.66,231.05,231.0,3.60606962]
[1759717876804,6.82,231.01,230.98,16.88239635]
[1759717876992,99.66,231.05,231.0,3.60606962]
[1759717876993,6.82,231.04,231.0,3.60606962]
[1759717877192,6.82,231.02,230.99,3.60606962]
[1759717878003,99.66,231.05,230.99,3.60606962]
[1759717878203,6.82,231.04,231.0,3.60606962]
[1759717879203,99.66,231.05,230.99,3.60606962]
[1759717879602,10.714,231.06,230.99,3.60606962]
[1759717879799,6.82,231.04,231.0,3.60606962]
[1759717880001,6.82,231.03,230.99,3.60606962]
[1759717880201,3.8943,231.04,230.98,3.60606962]
[1759717880598,10.7143,231.04,230.98,3.60606962]
[1759717880794,108.88,231.05,230.98,3.60606962]
[1759717880795,3.8946,231.02,230.98,3.60606962]
[1759717881000,6.82,231.01,230.97,3.60606962]
[1759717881202,108.86,231.0,230.97,16.54802675]
[1759717882296,62.51745009,231.08,230.97,16.54802675]
[1759717882297,10.7142,231.05,230.97,16.54802675]
[1759717882605,108.84,231.01,230.99,11.51606962]
[1759717882804,108.82,231.04,230.99,11.51606962]
[1759717882998,108.82,231.04,231.0,7.91]
[1759717883600,115.64,231.04,230.99,3.60606962]
[1759717883802,115.64,231.04,230.99,11.51606962]
[1759717885401,108.82,231.04,230.99,11.51606962]
[1759717885601,6.82,231.03,230.99,7.91]
[1759717885800,6.82,231.03,230.99,11.51606962]
[1759717886403,108.82,231.04,230.99,11.51606962]
[1759717886608,60.5627,231.1,230.99,11.51606962]
[1759717886609,3.8934,231.09,231.0,7.91]
[1759717886801,108.74,231.08,231.0,11.51606962]
[1759717889511,108.74,231.08,231.01,3.60606962]
[1759717889808,108.74,231.08,231.0,11.51606962]
[1759717889809,115.56,231.08,231.0,11.51606962]
[1759717890609,3.8939,231.06,231.0,11.51606962]
[1759717890908,108.74,231.08,231.0,3.60606962]
[1759717891104,6.82,231.07,230.99,3.60606962]
[1759717892706,3.8943,231.04,230.99,3.60606962]
[1759717892907,3.8943,231.04,231.0,7.91]
[1759717893707,10.7138,231.07,231.0,11.51606962]
[1759717894202,3.894,231.06,231.0,11.51606962]
[1759717894606,3.894,231.06,231.0,7.91]
[1759717895615,3.894,231.06,231.0,11.51606962]
[1759717895813,3.894,231.06,231.0,7.91]
[1759717898315,6.82,231.07,231.0,7.91]
[1759717898516,72.38,231.06,231.01,3.60606962]
[1759717898815,72.38,231.06,231.0,11.51606962]
[1759717900812,3.8931,231.11,231.0,3.60606962]
[1759717901015,3.8931,231.11,231.02,11.05606962]
[1759717901215,3.8931,231.11,231.03,7.45]
[1759717901615,3.8931,231.11,231.04,3.60606962]
[1759717904118,115.04,231.12,231.04,3.60606962]
[1759717904316,115.04,231.12,231.05,3.60606962]
[1759717904724,115.04,231.12,231.04,3.60606962]
[1759717905326,115.04,231.12,231.03,7.45]
[1759717905327,6.82,231.1,231.03,3.60606962]
[1759717905526,6.82,231.08,231.02,3.60606962]
[1759717905728,3.8944,231.04,231.0,3.60606962]
[1759717906123,6.82,231.03,231.0,3.60606962]
[1759717906622,6.82,231.03,231.01,3.60606962]
[1759717908228,6.82,231.03,231.02,3.60606962]
[1759717909229,6.82,231.03,231.0,4.83709368]
[1759717911131,6.82,231.03,231.01,4.83709368]
[1759717914839,6.82,231.01,231.0,4.83709368]
[1759717916130,6.82,231.04,231.0,4.83709368]
[1759717916335,6.82,231.04,231.03,3.63295506]
[1759717916830,114.6,231.04,231.03,3.63295506]
[1759717918830,114.6,231.04,231.01,4.83709368]
[1759717918831,118.4944,231.04,231.01,4.83709368]
[1759717919035,118.4944,231.04,231.03,3.63405513]
[1759717920639,6.82,231.09,231.03,3.63405513]
[1759717920833,114.52,231.08,231.06,3.63267811]
[1759717921033,107.7,231.07,231.06,3.63267811]
[1759717921436,107.7,231.07,231.02,7.31]
[1759717921437,114.52,231.07,231.05,7.811e-05]
[1759717921639,114.52,231.07,231.01,4.83709368]
[1759717921935,6.82,231.02,231.01,4.83709368]
[1759717922239,107.7,231.02,230.97,13.29265906]
[1759717922434,6.82,231.01,230.94,7.25564052]
[1759717924642,3.895,231.0,230.94,7.25564052]
[1759717925440,3.895,231.0,230.92,7.31]
[1759717925441,3.895,231.0,230.93,7.25564052]
[1759717927143,3.895,231.0,230.93,20.34267186]
[1759717927940,3.8953,230.98,230.93,20.34267186]
[1759717928444,3.8953,230.98,230.95,7.31]
[1759717929841,6.82,231.0,230.94,7.31]
[1759717931545,3.8954,230.98,230.94,7.31]
[1759717931935,10.7154,230.98,230.94,7.31]
[1759717934553,3.8948,231.01,230.94,7.31]
[1759717935544,3.895,231.0,230.94,7.31]
[1759717935744,114.52,231.02,230.94,7.31]
[1759717936139,6.82,230.97,230.93,13.08703134]
[1759717936342,6.82,230.97,230.93,7.31]
[1759717937649,6.82,230.97,230.92,7.99]
[1759717937949,6.82,230.97,230.91,7.25564052]
[1759717938248,6.82,230.97,230.92,7.99]
[1759717938546,10.7155,230.97,230.91,15.24564052]
[1759717938750,6.82,230.97,230.91,15.24564052]
[1759717938948,10.7064,230.92,230.88,7.99]
[1759717939143,1.24725877,230.94,230.88,13.15869802]
[1759717939344,1.24725877,230.91,230.84,12.94967233]
[1759717939551,6.81,230.86,230.82,7.25564052]
[1759717939749,6.81,230.86,230.82,21.00662645]
[1759717940844,3.8974,230.85,230.82,13.01662645]
[1759717941045,6.81,230.84,230.78,7.99]
[1759717942952,6.81,230.87,230.78,7.99]
[1759717943544,6.81,230.87,230.78,20.98419294]
[1759717943741,5.14475877,230.85,230.78,7.99]
[1759717943942,1.24725877,230.82,230.73,8.74410369]
[1759717944252,6.81,230.81,230.73,7.99]
[1759717944450,10.7082,230.81,230.73,7.99]
[1759717944652,10.7082,230.81,230.73,21.00000455]
[1759717945051,6.81,230.78,230.73,13.01000455]
[1759717945245,6.81,230.77,230.69,7.99]
[1759717945651,5.14625877,230.76,230.69,7.99]
[1759717946053,6.81,230.77,230.69,7.99]
[1759717946249,107.54,230.76,230.69,7.99]
[1759717947157,107.54,230.76,230.69,21.13094021]
[1759717947357,107.54,230.76,230.69,7.99]
[1759717947848,6.81,230.72,230.64,7.99]
[1759717948051,6.81,230.72,230.64,20.97517949]
[1759717949854,1.24725877,230.75,230.65,7.99]
[1759717950957,114.37,230.76,230.68,7.99]
[1759717951152,118.269,230.76,230.68,7.99]
[1759717951359,1.24725877,230.75,230.68,7.99]
[1759717951560,6.81,230.74,230.64,7.99]
[1759717951857,10.7093,230.74,230.64,7.99]
[1759717952358,10.7093,230.74,230.64,21.04148347]
[1759717952657,10.7093,230.74,230.64,7.99]
[1759717953255,11.95655877,230.74,230.64,7.99]
[1759717955259,8.05725877,230.74,230.64,7.99]
[1759717956261,8.05725877,230.74,230.64,21.21049361]
[1759717958158,8.05725877,230.74,230.66,7.31]
[1759717959859,68.4137,230.88,230.7,7.31]
[1759717959860,8.06725877,230.79,230.7,7.31]
[1759717960461,11.96565877,230.79,230.7,7.31]
[1759717961156,11.96565877,230.79,230.7,11.2099]
[1759717962663,11.96565877,230.79,230.7,7.31]
[1759717964563,3.8988,230.77,230.7,7.31]
[1759717965966,8.06725877,230.79,230.7,7.31]
[1759717966669,3.8986,230.78,230.7,7.31]
[1759717969564,3.8986,230.78,230.68,3.9003]
[1759717969762,8.07725877,230.73,230.66,7.56]
[1759717970563,3.8997,230.72,230.66,7.56]
[1759717970867,8.07725877,230.73,230.66,7.56]
[1759717971967,1.24725877,230.75,230.67,7.56]
[1759717972368,6.83,230.74,230.67,7.56]
[1759717972562,8.07725877,230.72,230.67,7.56]
[1759717972763,1.24725877,230.72,230.67,7.56]
[1759717972964,6.83,230.71,230.67,7.56]
[1759717974469,6.83,230.71,230.64,16.96695139]
[1759717974671,6.83,230.71,230.65,7.56]
[1759717975960,6.83,230.76,230.65,7.56]
[1759717976171,1.24725877,230.81,230.71,7.56]
[1759717976372,46.21,230.83,230.71,7.56]
[1759717976373,1.24725877,230.78,230.71,7.56]
[1759717976969,5.14595877,230.78,230.71,7.56]
[1759717977170,1.24725877,230.78,230.71,7.56]
[1759717978170,1.24725877,230.75,230.66,7.56]
[1759717978373,6.83,230.71,230.61,7.56]
[1759717979378,3.9001,230.69,230.61,7.56]
[1759717980079,5.14735877,230.69,230.61,7.56]
[1759717981782,6.83,230.71,230.61,7.56]
[1759717981783,6.83,230.68,230.61,13.1402979]
[1759717981981,6.83,230.68,230.57,7.56]
[1759717981982,6.83,230.64,230.57,11.1814366]
[1759717982175,6.83,230.64,230.57,7.56]
[1759717982380,1.24725877,230.62,230.57,7.56]
[1759717982680,8.07725877,230.62,230.55,11.1814366]
[1759717982877,8.07725877,230.62,230.56,3.6214366]
[1759717983078,8.07725877,230.62,230.57,3.6214366]